bitfinex/quotes_ETHUSD_20250803
["timestamp","ask_amount","ask_price","bid_price","bid_amount"]
[1754191792586,0.001,3451.7,3451.6,0.870965]
[1754191792902,0.9122,3451.7,3451.6,0.870965]
[1754191802710,0.001,3451.7,3451.6,0.870965]
[1754191803010,0.9122,3451.7,3451.6,0.870965]
[1754191804202,0.4518,3451.7,3451.6,0.870965]
[1754191808435,0.001,3451.7,3451.6,0.870965]
[1754191808637,1.4622,3451.7,3451.6,0.870965]
[1754191808810,2.05324119,3451.7,3451.6,0.870965]
[1754191809535,2.32472586,3451.7,3451.6,0.870965]
[1754191810437,2.05324119,3451.7,3451.6,0.870965]
[1754191811131,2.32464664,3451.7,3451.6,0.870965]
[1754191811647,2.05324119,3451.7,3451.6,0.870965]
[1754191811808,2.32458406,3451.7,3451.6,0.870965]
[1754191813544,2.32458406,3451.7,3451.1,0.002]
[1754191813545,0.55,3451.6,3451.1,0.002]
[1754191813852,0.55,3451.4,3451.2,0.870965]
[1754191814158,1.49741823,3451.3,3451.2,0.870965]
[1754191814364,0.55,3451.2,3451.1,0.002]
[1754191814525,2.30646584,3451.2,3451.1,0.002]
[1754191816447,1.84606584,3451.2,3451.1,0.002]
[1754191816638,4.962,3451.2,3451.1,0.002]
[1754191817038,5.4128,3451.2,3451.1,0.002]
[1754191817235,5.8732,3451.2,3451.1,0.002]
[1754191820148,7.15,3451.4,3451.1,0.002]
[1754191820149,7.5923,3451.4,3451.1,0.002]
[1754191820350,4.962,3451.2,3451.1,0.4526]
[1754191820525,4.412,3451.2,3451.1,0.4526]
[1754191821647,4.412,3451.2,3451.1,0.8982]
[1754191822152,4.412,3451.2,3451.1,0.4526]
[1754191823727,4.412,3451.2,3451.1,1.323934]
[1754191827059,4.404,3451.2,3451.1,1.323934]
[1754191832122,4.404,3451.2,3451.1,0.873334]
[1754191832330,4.8463,3451.2,3451.1,0.873334]
[1754191833362,4.404,3451.2,3451.1,0.873334]
[1754191833531,6.54389441,3451.2,3451.1,0.873334]
[1754191833864,7.09389441,3451.2,3451.1,0.873334]
[1754191834930,7.09389441,3451.2,3451.1,0.002]
[1754191835462,7.36531741,3451.2,3451.1,0.002]
[1754191835762,9.10731741,3451.2,3451.1,0.002]
[1754191840292,16.25731741,3451.2,3451.1,0.002]
[1754191844617,16.2573392,3451.2,3451.1,0.002]
[1754191847724,46.2573392,3451.2,3451.1,0.002]
[1754191848028,46.40669292,3451.2,3451.1,0.002]
[1754191848241,49.40669292,3451.2,3451.1,0.002]
[1754191851028,49.40641177,3451.2,3451.1,0.002]
[1754191852440,49.40741177,3451.2,3451.1,0.002]
[1754191855087,49.69791177,3451.2,3451.1,0.002]
[1754191858851,19.69791177,3451.2,3451.1,0.002]
[1754191859066,49.69791177,3451.2,3451.1,0.002]
[1754191859587,32.292,3451.1,3451.0,0.002]
[1754191859790,36.36101071,3451.1,3451.0,0.002]
[1754191860454,7.142,3450.6,3450.0,0.461]
[1754191860650,47.11716364,3450.6,3449.8,0.4453]
[1754191860868,47.58186364,3450.6,3450.2,0.461]
[1754191861203,50.45011071,3450.6,3450.2,0.461]
[1754191862690,20.45011071,3450.6,3450.2,0.461]
[1754191862885,50.45011071,3450.6,3450.2,0.461]
[1754191863106,50.91501071,3450.6,3450.0,0.461]
[1754191863391,60.99220744,3450.6,3450.0,0.461]
[1754191863793,60.99220744,3450.6,3449.7,0.002]
[1754191864087,60.99220744,3450.6,3450.0,0.461]
[1754191864287,60.99220744,3450.6,3449.7,0.002]
[1754191864288,0.55,3450.3,3449.7,0.002]
[1754191864594,1.831,3449.8,3449.7,0.002]
[1754191864761,20.66339762,3449.8,3449.7,0.002]
[1754191864961,20.62716364,3449.8,3449.7,0.002]
[1754191865161,21.87445805,3449.8,3449.7,0.002]
[1754191866579,21.87445805,3449.8,3449.7,0.9083]
[1754191868391,21.87445805,3449.8,3449.7,0.002]
[1754191870709,21.87445805,3449.8,3449.7,0.463]
[1754191870989,20.62716364,3449.8,3449.7,0.9083]
[1754191871392,20.62716364,3449.8,3449.7,0.463]
[1754191872607,20.62716364,3449.8,3449.7,0.002]
[1754191872898,20.62706126,3449.8,3449.7,0.002]
[1754191873198,21.09196126,3449.8,3449.7,0.002]
[1754191873383,23.24762739,3449.8,3449.7,0.002]
[1754191874183,23.71232739,3449.8,3449.7,0.002]
[1754191875094,22.78272739,3449.8,3449.7,0.002]
[1754191877597,23.71232739,3449.8,3449.7,0.002]
[1754191881167,23.24762739,3449.8,3449.7,0.002]
[1754191881362,22.78272739,3449.8,3449.7,0.002]
[1754191882204,14.38406126,3449.8,3449.7,0.4824]
[1754191882362,18.79606126,3449.8,3449.7,0.9325]
[1754191882561,18.79606126,3449.8,3449.7,1.4129]
[1754191882794,19.34645853,3449.8,3449.7,1.4129]
[1754191882986,18.525,3449.8,3449.7,1.4129]
[1754191883500,19.075,3449.8,3449.7,1.4129]
[1754191883670,18.525,3449.8,3449.7,1.4129]
[1754191884182,19.075,3449.8,3449.7,1.4129]
[1754191886313,6.971,3449.8,3449.7,1.4129]
[1754191886480,11.383,3449.8,3449.7,1.4129]
[1754191888574,6.971,3449.8,3449.7,1.4129]
[1754191888778,11.382,3449.8,3449.7,1.4129]
[1754191889996,11.382,3449.8,3449.7,4.4129]
[1754191890203,11.382,3449.8,3449.7,5.86210967]
[1754191890809,4.411,3449.8,3449.7,5.86210967]
[1754191891805,0.001,3450.2,3449.7,5.86210967]
[1754191892107,4.411,3450.1,3450.0,13.07719673]
[1754191892313,4.411,3450.1,3450.0,15.18083018]
[1754191892477,4.412,3450.2,3450.1,3.0]
[1754191892682,4.412,3450.2,3450.1,3.9305]
[1754191892904,4.412,3450.2,3450.1,4.801905]
[1754191893111,4.412,3450.2,3450.1,6.25111467]
[1754191899518,4.412,3450.2,3450.1,6.46507804]
[1754191904553,4.8643,3450.2,3450.1,0.871405]
[1754191904731,5.3389,3450.2,3450.1,0.871405]
[1754191906914,4.8866,3450.2,3450.1,0.871405]
[1754191907318,5.3389,3450.2,3450.1,0.871405]
[1754191908929,6.42279,3450.2,3450.1,0.871405]
[1754191913039,0.55,3450.1,3449.7,0.002]
[1754191913202,0.03623188,3450.0,3449.7,0.002]
[1754191913404,0.55,3449.8,3449.7,0.873405]
[1754191913604,1.4776,3449.8,3449.7,0.873405]
[1754191913841,2.10249398,3449.8,3449.7,0.873405]
[1754191915536,2.06626,3449.8,3449.7,0.873405]
[1754191915752,2.10249398,3449.8,3449.7,0.873405]
[1754191915964,2.06626,3449.8,3449.7,0.873405]
[1754191917527,2.10249398,3449.8,3449.7,0.873405]
[1754191917732,2.06626,3449.8,3449.7,0.002]
[1754191920766,1.13866,3449.8,3449.7,0.873874]
[1754191920968,2.06626,3449.8,3449.7,0.873874]
[1754191921183,0.55,3449.8,3449.7,0.873874]
[1754191921338,4.96,3449.8,3449.7,0.873874]
[1754191921849,4.41,3449.8,3449.7,0.873874]
[1754191922071,4.41,3449.8,3449.7,1.782474]
[1754191922669,4.41,3449.8,3449.7,0.873874]
[1754191923260,4.41,3449.8,3449.7,11.85967073]
[1754191923583,4.41,3449.8,3449.7,13.0458378]
[1754191926684,4.41,3449.8,3449.7,16.0458378]
[1754191927654,4.41,3449.8,3449.7,5.96864107]
[1754191928056,4.41,3449.8,3449.7,4.782474]
[1754191929588,0.001,3450.2,3449.8,3.0]
[1754191929877,4.409,3449.9,3449.8,0.9086]
[1754191931180,4.409,3449.9,3449.8,0.4574]
[1754191931471,5.3366,3449.9,3449.7,0.873874]
[1754191931843,0.4536,3449.8,3449.7,0.873874]
[1754191932978,4.409,3449.9,3449.7,0.873874]
[1754191933473,4.8626,3449.9,3449.7,0.873874]
[1754191934176,4.409,3449.9,3449.7,0.873874]
[1754191934877,4.8626,3449.9,3449.7,0.873874]
[1754191935747,4.409,3449.9,3449.7,0.873874]
[1754191940351,4.409,3449.9,3449.7,1.365174]
[1754191944053,4.409,3449.9,3449.7,0.873874]
[1754191944779,4.8854,3449.9,3449.7,0.873874]
[1754191945476,4.409,3449.9,3449.7,0.873874]
[1754191946761,4.409,3449.9,3449.8,13.56849673]
[1754191947362,4.409,3449.9,3449.8,14.44008473]
[1754191948091,4.409,3449.9,3449.8,13.94878473]
[1754191951408,4.409,3449.9,3449.8,14.44008473]
[1754191952182,4.409,3449.9,3449.8,13.94878473]
[1754191960424,4.41,3449.9,3449.8,13.94878473]
[1754191960726,4.41,3449.9,3449.8,15.4362332]
[1754191960942,4.41,3449.9,3449.8,16.3579332]
[1754191962324,0.001,3450.2,3449.9,3.0]
[1754191962640,0.001,3450.2,3449.9,3.9217]
[1754191962641,4.408,3450.2,3449.9,3.9217]
[1754191962847,4.408,3450.2,3450.0,1.62619465]
[1754191963030,4.408,3450.2,3450.0,2.05659465]
[1754191963340,4.408,3450.2,3450.1,0.9217]
[1754191963902,4.408,3450.2,3450.1,4.793133]
[1754191964105,4.408,3450.2,3450.1,5.85018147]
[1754191964512,4.408,3450.2,3450.1,2.35888147]
[1754191967014,4.408,3450.2,3450.1,2.85018147]
[1754191968115,4.408,3450.2,3450.1,2.35888147]
[1754191973279,4.8876,3450.2,3450.1,2.35888147]
[1754191973580,5.3624,3450.2,3450.1,0.871433]
[1754191978960,4.408,3450.2,3450.1,0.871433]
[1754191979166,5.3624,3450.2,3450.1,0.871433]
[1754191980369,5.89874,3450.2,3450.1,0.871433]
[1754191981881,5.3624,3450.2,3450.1,0.871433]
[1754191983805,5.9124,3450.2,3450.1,0.871433]
[1754191992896,5.4376,3450.2,3450.1,0.871433]
[1754191993212,4.406,3450.2,3450.1,1.807033]
[1754191993416,4.406,3450.2,3450.1,6.29565597]
[1754191994710,4.406,3450.2,3450.1,5.36005597]
[1754191995014,5.9104,3450.2,3450.1,3.871433]
[1754191997187,5.4356,3450.2,3450.1,3.871433]
[1754191997394,0.55,3450.1,3449.9,0.002]
[1754191997596,5.90909828,3450.0,3449.9,0.002]
[1754191997901,5.8728664,3450.0,3449.9,0.002]
[1754191998120,6.8272664,3450.0,3449.9,0.002]
[1754191998896,6.55554,3450.0,3449.9,0.002]
[1754192001937,6.82694279,3450.0,3449.9,0.002]
[1754192002467,6.82694279,3450.0,3449.9,0.118234]
[1754192002967,6.55554,3450.0,3449.9,0.118234]
[1754192004072,5.9094,3450.0,3449.9,0.118234]
[1754192004855,6.18074906,3450.0,3449.9,0.118234]
[1754192005161,5.22634906,3450.0,3449.9,0.118234]
[1754192005329,5.415,3450.0,3449.9,0.118234]
[1754192005528,5.8679,3450.0,3449.9,0.118234]
[1754192007977,4.955,3450.0,3449.9,0.118234]
[1754192008940,4.955,3450.0,3449.9,0.572034]
[1754192009135,4.405,3450.0,3449.9,0.118234]
[1754192009340,0.001,3450.2,3449.9,1.010334]
[1754192009559,0.001,3450.2,3450.1,3.0]
[1754192009997,0.001,3450.2,3450.1,4.763607]
[1754192017708,0.001,3450.2,3450.1,0.871507]
[1754192017910,0.001,3450.2,3450.1,3.871507]
[1754192018211,0.001,3450.2,3450.1,8.275507]
[1754192018377,0.001,3450.2,3450.1,10.64873071]
[1754192019102,0.001,3450.2,3450.1,11.08703071]
[1754192021279,0.001,3450.2,3450.1,10.64873071]
[1754192021606,0.001,3450.2,3450.1,6.24473071]
[1754192021810,0.001,3450.2,3450.1,10.19493071]
[1754192022374,0.001,3450.2,3450.1,10.64873071]
[1754192023712,0.001,3450.2,3450.1,10.19493071]
[1754192024612,0.001,3450.2,3450.1,5.79093071]
[1754192024795,0.001,3450.2,3450.1,10.64873071]
[1754192026613,0.001,3450.2,3450.1,11.08703071]
[1754192027192,0.001,3450.2,3450.1,6.68303071]
[1754192027509,0.001,3450.3,3450.1,11.08603071]
[1754192027689,0.001,3450.3,3450.2,0.30168601]
[1754192027880,0.001,3450.3,3450.2,1.19378601]
[1754192031282,0.001,3450.3,3450.2,9.08028601]
[1754192036437,0.001,3450.3,3450.2,8.64198601]
[1754192037040,0.001,3450.3,3450.2,9.10628601]
[1754192038429,0.001,3451.2,3450.3,3.0]
[1754192038621,0.001,3451.2,3451.1,13.07719673]
[1754192038622,0.4845,3451.2,3451.1,13.07719673]
[1754192038822,0.4845,3451.2,3451.1,17.48019673]
[1754192039123,0.9572,3451.2,3451.1,17.96469673]
[1754192040445,0.4845,3451.2,3451.1,17.96469673]
[1754192041444,0.001,3451.2,3451.1,17.96469673]
[1754192041624,0.001,3451.2,3451.1,19.8559164]
[1754192042159,0.001,3451.2,3451.1,15.4529164]
[1754192042362,0.4845,3451.2,3451.1,19.8549164]
[1754192042948,0.9572,3451.2,3451.1,19.8549164]
[1754192043544,0.4845,3451.2,3451.1,19.8549164]
[1754192044106,0.4845,3451.2,3451.1,20.07765395]
[1754192044107,0.001,3451.2,3451.1,20.07765395]
[1754192045264,0.001,3451.2,3451.1,20.56085395]
[1754192046513,0.001,3451.2,3451.1,21.02515395]
[1754192047257,0.4835,3452.0,3451.2,3.0]
[1754192047497,0.4835,3452.0,3451.6,13.07719673]
[1754192047808,0.001,3452.1,3451.6,17.47919673]
[1754192048101,0.001,3452.1,3451.6,18.42669673]
[1754192049803,0.4845,3452.1,3451.6,14.02469673]
[1754192050003,0.4845,3452.1,3451.6,19.69893013]
[1754192052415,0.001,3452.1,3451.7,3.0]
[1754192052703,0.4845,3452.1,3452.0,13.07719673]
[1754192052880,0.001,3452.1,3452.0,3.0]
[1754192053084,0.001,3452.1,3452.0,7.401]
[1754192053495,0.9572,3452.1,3452.0,7.401]
[1754192053896,0.9572,3452.1,3452.0,8.272]
[1754192054480,0.001,3452.1,3452.0,19.17639673]
[1754192054707,0.001,3452.1,3452.0,19.65959673]
[1754192054904,0.001,3452.1,3452.0,19.17639673]
[1754192055108,0.4835,3452.9,3452.1,3.0]
[1754192055285,0.4835,3452.9,3452.5,3.0]
[1754192055487,0.9562,3452.9,3452.7,3.0]
[1754192055688,0.001,3453.4,3452.2,1.52831967]
[1754192055689,0.4835,3453.2,3452.9,3.0]
[1754192055988,0.4835,3453.2,3453.1,3.0]
[1754192055989,0.4727,3453.2,3453.1,3.0]
[1754192056189,0.001,3453.4,3453.1,3.0]
[1754192056395,0.001,3453.4,3453.3,13.07719673]
[1754192056583,0.001,3453.4,3453.3,14.9197664]
[1754192057632,0.001,3453.4,3453.3,15.8672664]
[1754192059503,0.001,3453.4,3453.3,15.4029664]
[1754192059711,0.001,3453.4,3453.3,15.8625664]
[1754192060016,0.001,3453.4,3453.3,19.8029664]
[1754192060319,0.001,3453.4,3453.3,20.2625664]
[1754192060720,0.001,3453.4,3453.3,19.8029664]
[1754192062313,0.001,3453.4,3453.3,14.9197664]
[1754192062520,0.001,3453.4,3453.3,19.3187664]
[1754192063017,0.4852,3453.4,3453.3,14.9197664]
[1754192063318,0.9455,3453.4,3452.9,10.29104219]
[1754192063617,0.001,3453.4,3453.3,13.56239673]
[1754192063831,0.001,3453.4,3453.3,14.96139673]
[1754192064137,0.4852,3453.4,3453.3,17.96139673]
[1754192064788,0.9455,3453.4,3453.3,17.96139673]
[1754192065093,0.9455,3453.4,3453.3,13.56239673]
[1754192065294,0.9455,3453.4,3453.3,7.8842]
[1754192065732,0.9455,3453.4,3453.3,3.4852]
[1754192065928,0.9455,3453.4,3453.3,0.4852]
[1754192066257,0.9455,3453.4,3453.3,3.4852]
[1754192067641,1.4955,3453.4,3453.3,4.8842]
[1754192069532,1.4955,3453.4,3453.3,0.4852]
[1754192069739,1.64505,3453.4,3453.3,0.4852]
[1754192070043,0.55,3453.3,3452.7,4.399]
[1754192070247,0.55,3453.3,3452.6,4.399]
[1754192070248,1.4945,3453.3,3452.6,4.399]
[1754192070420,0.55,3453.1,3452.6,4.399]
[1754192070621,0.55,3452.9,3452.6,4.399]
[1754192070961,0.9445,3452.8,3452.6,3.0]
[1754192071132,0.164505,3453.1,3452.6,3.0]
[1754192071313,0.55,3452.9,3452.6,3.0]
[1754192071818,0.55,3452.7,3452.1,0.870942]
[1754192072014,0.9445,3452.6,3452.2,4.399]
[1754192072214,0.4842,3452.5,3452.2,4.399]
[1754192072433,0.4842,3452.5,3452.3,3.0]
[1754192072841,0.4603,3452.5,3452.3,3.0]
[1754192073018,0.4842,3452.4,3452.3,3.0]
[1754192073432,0.9445,3452.4,3452.3,3.0]
[1754192075160,0.9445,3452.4,3452.3,4.4]
[1754192075324,0.001,3453.4,3452.4,3.0]
[1754192075524,0.4603,3452.6,3452.4,3.0]
[1754192075829,0.4603,3452.5,3452.4,3.0]
[1754192076155,0.9445,3452.5,3452.4,3.0]
[1754192076555,0.9445,3452.5,3452.4,3.870957]
[1754192077128,0.9445,3452.5,3452.4,0.870957]
[1754192077334,1.4945,3452.5,3452.4,0.870957]
[1754192078181,1.64395,3452.5,3452.4,0.870957]
[1754192078468,0.55,3452.4,3451.4,0.4587]
[1754192078650,0.14945,3452.5,3452.3,0.871076]
[1754192078866,0.55,3453.0,3452.3,0.871076]
[1754192079044,0.55,3452.8,3452.3,0.871076]
[1754192079244,0.9445,3452.7,3452.3,0.871076]
[1754192079536,0.55,3452.5,3452.3,0.871076]
[1754192079762,1.4945,3452.4,3452.3,0.871076]
[1754192086492,1.64395,3452.4,3452.3,0.871076]
[1754192087336,1.4945,3452.4,3452.3,0.871076]
[1754192088572,1.4955,3452.4,3452.3,0.871076]
[1754192090568,1.0352,3452.4,3452.3,0.871076]
[1754192091365,0.551,3452.4,3452.3,0.871076]
[1754192092551,1.4565,3452.4,3452.3,0.871076]
[1754192093072,1.007,3452.4,3452.3,0.871076]
[1754192093245,0.551,3452.4,3452.3,0.871076]
[1754192096547,1.4565,3452.4,3452.3,0.871076]
[1754192097180,1.60215,3452.4,3452.3,0.871076]
[1754192098293,1.4565,3452.4,3452.3,0.871076]
[1754192100556,0.55,3452.3,3452.0,0.002]
[1754192100754,0.55,3452.1,3452.0,0.002]
[1754192101142,1.4555,3452.1,3452.0,0.002]
[1754192101346,2.75535,3452.1,3452.0,0.002]
[1754192101683,9.93355984,3452.1,3452.0,0.002]
[1754192101981,8.5975,3452.1,3452.0,0.002]
[1754192102591,43.3415,3452.1,3452.0,0.002]
[1754192102878,53.41869673,3452.1,3452.0,0.002]
[1754192104363,11.5975,3452.1,3452.0,0.002]
[1754192104563,13.38637126,3452.1,3452.0,0.002]
[1754192105180,9.83637126,3452.1,3452.0,0.002]
[1754192105671,7.142,3452.1,3452.0,0.002]
[1754192106003,5.3065,3452.4,3452.0,0.002]
[1754192106303,4.857,3452.4,3452.0,0.4777]
[1754192106500,0.55,3452.3,3452.0,0.4777]
[1754192106889,4.857,3452.4,3452.0,0.4777]
[1754192107094,4.401,3452.4,3452.0,0.002]
[1754192107297,4.401,3452.4,3452.1,0.4757]
[1754192107635,0.55,3452.3,3452.1,0.4757]
[1754192108104,1.006,3452.3,3452.0,0.002]
[1754192108503,0.55,3452.3,3452.0,0.002]
[1754192109000,0.55,3452.3,3452.0,0.9401]
[1754192109206,0.55,3452.3,3452.1,0.4757]
[1754192110125,0.55,3452.3,3452.2,0.4757]
[1754192110311,0.55,3452.3,3452.1,0.4757]
[1754192112294,0.55,3452.3,3452.0,0.002]
[1754192112614,0.55,3452.3,3452.1,0.9381]
[1754192112812,0.55,3452.3,3452.0,0.002]
[1754192113377,0.456,3452.2,3452.0,0.002]
[1754192113600,0.9995,3452.3,3452.0,0.002]
[1754192113601,1.4555,3452.3,3452.0,0.002]
[1754192113800,1.006,3452.3,3452.0,0.002]
[1754192114478,0.456,3452.2,3452.0,0.002]
[1754192114677,0.9995,3452.3,3452.0,0.002]
[1754192114877,1.4555,3452.3,3452.0,0.002]
[1754192115309,0.456,3452.2,3452.0,0.002]
[1754192116811,1.49170984,3452.1,3452.0,0.002]
[1754192117109,1.4555,3452.1,3452.0,0.002]
[1754192120705,1.006,3452.1,3452.0,0.002]
[1754192121080,0.55,3452.1,3452.0,0.002]
[1754192121280,0.55,3452.1,3452.0,0.4918]
[1754192121812,0.55,3452.1,3452.0,0.002]
[1754192122002,1.0374,3452.1,3452.0,0.002]
[1754192122494,0.55,3452.1,3452.0,0.002]
[1754192123278,0.55,3452.1,3452.0,0.9606]
[1754192123985,0.55,3452.1,3452.0,0.4918]
[1754192125118,0.55,3452.1,3452.0,0.9606]
[1754192126811,4.401,3452.4,3452.0,0.9606]
[1754192126812,4.401,3452.4,3452.0,0.4918]
[1754192127125,0.55,3452.3,3452.0,0.9606]
[1754192127325,4.401,3452.4,3452.1,1.35466]
[1754192127628,4.401,3452.4,3452.2,0.9586]
[1754192127788,4.401,3452.4,3452.1,0.39606]
[1754192127987,4.401,3452.4,3452.3,0.9586]
[1754192128912,4.401,3452.4,3452.3,0.4898]
[1754192130117,4.401,3452.4,3452.1,1.35466]
[1754192130327,4.401,3452.4,3452.1,0.86486]
[1754192130623,4.401,3452.4,3452.2,0.4898]
[1754192130924,0.001,3452.3,3452.2,0.4898]
[1754192131701,0.001,3452.3,3452.1,0.39606]
[1754192131902,0.001,3452.3,3452.2,0.4898]
[1754192132891,0.001,3452.3,3452.0,0.4938]
[1754192133097,0.4884,3452.3,3452.0,0.4938]
[1754192133517,0.03620879,3452.2,3452.0,0.4938]
[1754192133723,0.03620879,3452.2,3452.0,0.002]
[1754192133724,0.4874,3452.2,3452.0,0.002]
[1754192133995,0.953,3452.1,3452.0,0.002]
[1754192134195,1.503,3452.1,3452.0,0.002]
[1754192137096,1.53920984,3452.1,3452.0,0.002]
[1754192137731,5.94520984,3452.1,3452.0,0.002]
[1754192138026,5.909,3452.1,3452.0,0.002]
[1754192138231,6.8309704,3452.1,3452.0,0.002]
[1754192138432,6.83094668,3452.1,3452.0,0.002]
[1754192139417,36.83094668,3452.1,3452.0,0.002]
[1754192141932,43.97294668,3452.1,3452.0,0.002]
[1754192144544,13.97294668,3452.1,3452.0,0.002]
[1754192144739,43.97294668,3452.1,3452.0,0.002]
[1754192151346,15.71694668,3452.1,3452.0,0.002]
[1754192151557,45.71694668,3452.1,3452.0,0.002]
[1754192152553,45.71615936,3452.1,3452.0,0.002]
[1754192154245,15.71615936,3452.1,3452.0,0.002]
[1754192154450,45.71615936,3452.1,3452.0,0.002]
[1754192158859,48.71615936,3452.1,3452.0,0.002]
[1754192160251,48.25055936,3452.1,3452.0,0.002]
[1754192160454,48.68205936,3452.1,3452.0,0.002]
[1754192162333,18.68205936,3452.1,3452.0,0.002]
[1754192162556,55.65005936,3452.1,3452.0,0.002]
[1754192164273,24.73115936,3452.1,3452.0,0.002]
[1754192167947,17.58915936,3452.1,3452.0,0.002]
[1754192170141,13.18315936,3452.1,3452.0,0.002]
[1754192170368,13.18315936,3452.1,3452.0,0.9361]
[1754192170369,12.19200936,3452.1,3452.0,0.9361]
[1754192170668,11.64200936,3452.1,3452.0,0.9361]
[1754192170851,11.371,3452.1,3452.0,0.9361]
[1754192171479,11.921,3452.1,3452.0,0.9361]
[1754192172053,11.371,3452.1,3452.0,0.9361]
[1754192172446,11.921,3452.1,3452.0,0.9361]
[1754192173166,11.922,3452.1,3452.0,0.9361]
[1754192173868,11.922,3452.1,3452.0,1.80725]
[1754192177276,11.922,3452.1,3452.0,0.87315]
[1754192177277,13.6087,3452.1,3452.0,0.87315]
[1754192177478,14.0402,3452.1,3452.0,0.002]
[1754192180805,44.0402,3452.1,3452.0,0.002]
[1754192183522,51.1822,3452.1,3452.0,0.002]
[1754192184718,21.1822,3452.1,3452.0,0.002]
[1754192185416,15.8534,3452.1,3452.0,0.002]
[1754192185580,20.2564,3452.1,3452.0,0.002]
[1754192186305,20.7477,3452.1,3452.0,0.002]
[1754192188208,21.2042,3452.1,3452.0,0.002]
[1754192188908,51.2042,3452.1,3452.0,0.002]
[1754192189208,55.9482,3452.1,3452.0,0.002]
[1754192195011,56.21969366,3452.1,3452.0,0.002]
[1754192196324,35.294,3451.8,3451.7,0.002]
[1754192196530,47.11049366,3451.8,3451.7,0.002]
[1754192196736,48.05829366,3451.8,3451.7,0.002]
[1754192197312,48.05824254,3451.8,3451.7,0.002]
[1754192197784,47.7868,3451.8,3451.7,0.002]
[1754192197935,50.65504707,3451.8,3451.7,0.002]
[1754192202817,20.65504707,3451.8,3451.7,0.002]
[1754192203201,50.65504707,3451.8,3451.7,0.002]
[1754192204234,20.65504707,3451.8,3451.7,0.002]
[1754192204527,50.65504707,3451.8,3451.7,0.002]
[1754192205536,50.92662526,3451.8,3451.7,0.002]
[1754192205909,50.47012526,3451.8,3451.7,0.002]
[1754192206211,49.97882526,3451.8,3451.7,0.002]
[1754192206634,50.47012526,3451.8,3451.7,0.002]
[1754192207233,50.92662526,3451.8,3451.7,0.002]
[1754192210344,20.92662526,3451.8,3451.7,0.002]
[1754192210521,23.98262526,3451.8,3451.7,0.002]
[1754192210721,50.92662526,3451.8,3451.7,0.002]
[1754192211320,20.47012526,3451.8,3451.7,0.002]
[1754192211526,0.55,3451.4,3451.1,0.4519]
[1754192211727,0.55,3451.2,3450.8,0.116211]
[1754192212050,0.55,3450.9,3450.8,0.116211]
[1754192212224,5.22457819,3450.9,3450.8,0.116211]
[1754192212547,5.22457819,3450.9,3450.8,0.999211]
[1754192215815,0.55,3450.8,3450.4,0.002]
[1754192216028,5.22457819,3450.7,3450.5,0.87165]
[1754192216227,5.22457819,3450.7,3450.4,0.002]
[1754192216644,5.22457819,3450.7,3450.6,0.885]
[1754192216935,12.89265815,3450.7,3450.6,0.002]
[1754192217348,12.89263021,3450.7,3450.6,0.002]
[1754192220330,12.89263021,3450.7,3450.6,0.885]
[1754192221268,7.96355025,3450.7,3450.6,0.885]
[1754192221455,12.36655025,3450.7,3450.6,0.885]
[1754192222645,11.81655025,3450.7,3450.6,0.885]
[1754192222846,12.36655025,3450.7,3450.6,0.885]
[1754192223866,12.36655025,3450.7,3450.6,0.002]
[1754192224090,12.36655025,3450.7,3450.6,0.885]
[1754192225646,7.96355025,3450.7,3450.6,1.0608651]
[1754192225847,12.36655025,3450.7,3450.6,1.0608651]
[1754192226152,12.095,3450.7,3450.6,1.0608651]
[1754192226558,12.36689225,3450.7,3450.6,1.0608651]
[1754192226983,7.96389225,3450.7,3450.6,1.0608651]
[1754192227185,4.403,3450.7,3450.6,1.0608651]
[1754192227683,6.97,3451.1,3450.6,1.0608651]
[1754192227882,4.403,3451.0,3450.8,10.07719673]
[1754192228086,4.403,3451.0,3450.9,0.883]
[1754192228695,6.97,3451.1,3450.9,1.754378]
[1754192228867,4.403,3451.0,3450.9,1.754378]
[1754192229061,4.403,3451.0,3450.9,3.871378]
[1754192229786,4.403,3451.0,3450.9,4.754378]
[1754192230152,0.55,3451.6,3450.9,4.754378]
[1754192230354,0.55,3451.4,3451.2,10.07719673]
[1754192230662,0.55,3451.6,3451.3,1.97901967]
[1754192230881,0.55,3451.4,3451.3,1.09601967]
[1754192231360,4.952,3451.4,3451.3,1.97901967]
[1754192233787,0.001,3452.0,3451.3,4.97901967]
[1754192233986,4.402,3451.9,3451.4,0.883]
[1754192234194,4.402,3451.9,3451.3,4.09601967]
[1754192234370,0.55,3451.8,3451.5,0.4519]
[1754192234566,4.402,3451.7,3451.5,0.883]
[1754192234767,4.402,3451.7,3451.5,0.4311]
[1754192234970,4.402,3451.7,3451.5,0.883]
[1754192235268,4.402,3451.7,3451.6,0.4519]
[1754192235601,4.952,3451.7,3451.6,0.4519]
[1754192237102,6.38396,3451.7,3451.6,0.4519]
[1754192237302,0.55,3451.6,3450.9,0.4519]
[1754192237600,4.402,3451.5,3451.0,0.4519]